bitfinex/quotes_ETHUSD_20260109
["timestamp","ask_amount","ask_price","bid_price","bid_amount"]
[1767991315017,0.255,3084.4,3083.5,0.0028048]
[1767991315018,0.96130335,3084.3,3083.5,0.0028048]
[1767991315175,3.52635927,3084.4,3083.5,0.0028048]
[1767991315176,0.96130335,3084.1,3083.5,0.0028048]
[1767991315372,0.99046779,3084.0,3083.5,0.0028048]
[1767991315578,0.255,3083.9,3083.5,0.0028048]
[1767991315874,1.21630335,3083.9,3083.5,0.0028048]
[1767991316210,1.21630335,3083.9,3083.2,0.002]
[1767991316211,0.99046779,3083.8,3083.2,0.002]
[1767991316790,0.02916444,3083.6,3083.2,0.002]
[1767991316997,0.96130335,3083.5,3083.1,0.002]
[1767991317304,0.255,3083.4,3083.1,0.002]
[1767991319906,0.02916444,3083.6,3083.1,0.002]
[1767991320084,0.255,3083.3,3083.1,0.002]
[1767991320485,0.253,3083.3,3083.1,0.002]
[1767991323319,0.255,3083.4,3083.1,0.002]
[1767991325357,0.0008048,3083.9,3083.1,0.97919644]
[1767991325496,0.0008048,3083.9,3083.3,0.97719644]
[1767991325827,0.0008048,3083.9,3083.3,1.96816687]
[1767991326128,0.0008048,3083.9,3083.1,0.97919644]
[1767991326341,0.99180683,3083.8,3083.1,0.002]
[1767991327718,0.99180683,3083.8,3083.4,0.002]
[1767991329517,0.02916444,3083.8,3083.4,0.002]
[1767991330242,3.27193625,3083.8,3083.4,0.002]
[1767991330449,0.3272741,3083.7,3083.4,0.002]
[1767991331451,0.02916444,3083.8,3083.4,0.002]
[1767991333839,3.27192859,3083.8,3083.4,0.002]
[1767991334146,4.23457098,3083.8,3083.4,0.002]
[1767991334520,0.96264239,3083.7,3083.1,0.002]
[1767991334843,3.27192859,3083.8,3083.1,0.97919644]
[1767991335062,0.99180683,3083.6,3083.1,0.002]
[1767991335345,1.21764239,3083.5,3083.1,0.002]
[1767991335848,0.99180683,3083.4,3082.9,0.00080376]
[1767991336330,0.96264239,3083.3,3082.9,0.00080376]
[1767991336648,0.96264239,3083.1,3082.9,0.00080376]
[1767991336855,0.96264239,3083.3,3082.9,0.00080376]
[1767991338114,0.96264239,3083.1,3082.6,0.002]
[1767991338849,0.96264239,3082.9,3082.6,0.002]
[1767991341220,0.255,3083.0,3082.6,0.002]
[1767991344185,0.99180683,3082.9,3082.6,0.002]
[1767991344772,3.27291245,3082.9,3082.6,0.002]
[1767991344977,0.02916444,3082.7,3082.2,0.002]
[1767991345164,5.68712434,3082.3,3081.8,0.97919644]
[1767991345375,1.24680683,3082.5,3081.8,0.97919644]
[1767991345692,0.96264239,3082.4,3081.8,0.002]
[1767991346487,0.96264239,3082.3,3081.8,0.002]
[1767991347262,0.96264239,3082.2,3081.6,0.002]
[1767991347453,0.02916444,3081.7,3081.3,0.00080656]
[1767991347679,0.96264239,3081.3,3080.4,0.0008044]
[1767991347868,0.96344679,3080.8,3079.8,3.24776157]
[1767991348063,1.21764239,3080.7,3080.1,3.24657892]
[1767991348263,1.21764239,3080.7,3079.8,0.00080488]
[1767991348510,1.21764239,3080.7,3080.0,3.2466834]
[1767991348800,1.21764239,3080.7,3080.1,3.24663433]
[1767991349004,0.0008044,3080.8,3080.1,3.24663433]
[1767991349005,0.0008044,3080.8,3080.2,0.32466343]
[1767991349206,0.00083327,3081.4,3080.5,0.97719644]
[1767991351216,0.00083327,3081.4,3080.6,7.4694382]
[1767991351886,0.00083327,3081.4,3080.7,0.97719644]
[1767991353822,0.00083327,3081.4,3080.8,3.24591015]
[1767991354116,0.00083327,3081.4,3080.9,0.95505911]
[1767991354278,0.00083327,3081.4,3080.8,3.24591015]
[1767991354279,0.00083327,3081.4,3081.1,0.95505911]
[1767991354983,0.00083327,3081.4,3081.3,0.95505911]
[1767991355598,0.00083327,3081.4,3081.0,1.37515604]
[1767991355805,0.00083327,3081.4,3081.0,0.95505911]
[1767991356311,0.00083327,3081.4,3081.1,0.95505911]
[1767991357906,0.00083327,3081.4,3081.1,4.20065143]
[1767991358089,0.00083327,3081.4,3081.1,0.95505911]
[1767991358799,0.00083327,3081.4,3081.1,4.2005902]
[1767991358992,0.00083327,3081.4,3081.1,1.69969817]
[1767991359411,0.00083327,3081.4,3081.2,0.95505911]
[1767991362189,0.00083327,3081.4,3080.9,3.24578258]
[1767991362423,0.00083327,3081.4,3080.6,0.95505911]
[1767991363415,0.00080656,3081.7,3081.4,0.95505911]
[1767991363778,0.00080656,3081.7,3081.1,0.95505911]
[1767991364205,0.00080656,3081.7,3081.2,4.20054788]
[1767991364644,0.00080656,3081.7,3081.3,0.95505911]
[1767991366208,0.00080656,3081.7,3081.3,1.69966278]
[1767991366415,0.00080656,3081.7,3081.3,4.94495558]
[1767991366844,0.00080656,3081.7,3081.2,3.24540083]
[1767991367356,0.00080656,3081.7,3081.1,4.20059748]
[1767991367531,0.00080656,3081.7,3081.0,3.24651253]
[1767991367734,0.94695908,3081.7,3081.0,3.24651253]
[1767991368921,0.94695908,3081.7,3081.0,7.40325008]
[1767991369116,0.00080656,3081.7,3081.1,0.03245594]
[1767991369322,0.00080656,3081.7,3081.1,0.91103811]
[1767991370250,0.00080656,3081.7,3081.0,0.76665911]
[1767991370544,0.98614156,3081.7,3081.0,0.0008341]
[1767991372314,0.985335,3081.6,3081.0,0.0008341]
[1767991372603,0.985335,3081.2,3080.5,0.002]
[1767991372787,0.985335,3081.0,3080.5,0.002]
[1767991373902,0.985335,3081.3,3080.5,0.002]
[1767991374093,0.255,3081.2,3080.5,0.002]
[1767991374410,0.255,3081.2,3080.5,1.65370451]
[1767991374603,0.985335,3081.1,3080.5,0.7426664]
[1767991374768,0.985335,3081.1,3080.5,0.002]
[1767991376507,0.985335,3081.1,3080.8,0.002]
[1767991378774,1.240335,3081.0,3080.8,0.002]
[1767991378974,0.985335,3080.9,3080.5,0.002]
[1767991380607,0.255,3081.0,3080.5,0.002]
[1767991381105,1.240335,3081.0,3080.5,0.002]
[1767991382010,1.240335,3081.0,3080.1,4.15968594]
[1767991382011,0.985335,3080.9,3080.1,0.002]
[1767991382198,0.985335,3080.7,3080.1,0.002]
[1767991383074,4.23135436,3080.7,3080.1,0.002]
[1767991383583,0.90653241,3080.6,3080.1,0.002]
[1767991383781,3.246018,3080.7,3078.9,0.33133718]
[1767991383782,0.90653241,3080.4,3078.9,0.002]
[1767991384092,0.90653241,3080.1,3078.9,0.002]
[1767991384417,0.90653241,3079.9,3078.9,0.002]
[1767991384581,0.90653241,3079.9,3078.7,4.21374825]
[1767991384781,3.24696408,3079.8,3078.7,5.00038495]
[1767991384994,0.90653241,3079.8,3078.7,5.00038495]
[1767991385233,0.255,3079.7,3078.8,0.98057472]
[1767991385424,1.16153241,3079.7,3078.8,0.98057472]
[1767991385593,1.16153241,3079.7,3078.6,0.98057472]
[1767991385792,1.16153241,3079.7,3078.6,4.22874985]
[1767991386102,0.90653241,3079.6,3078.6,1.75387637]
[1767991386395,0.90653241,3079.6,3078.6,0.98057472]
[1767991386845,0.90653241,3079.4,3078.5,3.50332548]
[1767991387050,0.90653241,3079.4,3078.4,3.24924394]
[1767991387365,0.90653241,3079.4,3078.4,0.00084326]
[1767991387750,0.90653241,3079.4,3078.5,3.24833381]
[1767991387951,0.90653241,3079.8,3078.6,0.98057472]
[1767991388137,0.90653241,3079.8,3078.6,0.48107472]
[1767991388316,0.90653241,3079.6,3078.5,3.24833381]
[1767991388522,0.90653241,3079.6,3078.5,7.47724375]
[1767991388836,0.90653241,3079.6,3078.9,0.002]
[1767991389234,1.34738593,3079.6,3078.9,0.002]
[1767991389431,0.90653241,3079.6,3078.9,0.002]
[1767991389833,0.90653241,3079.9,3078.9,0.002]
[1767991390038,0.90653241,3079.9,3078.9,0.98257472]
[1767991390039,0.255,3079.9,3078.9,0.98257472]
[1767991390236,1.16153241,3079.9,3078.9,0.98257472]
[1767991390444,0.90653241,3079.8,3078.9,0.98257472]
[1767991390649,0.90653241,3079.8,3078.9,0.002]
[1767991390844,0.90653241,3079.8,3078.9,0.98257472]
[1767991391161,0.90653241,3079.7,3078.9,0.002]
[1767991391356,0.90653241,3079.5,3078.9,0.002]
[1767991393759,4.15352732,3079.8,3078.9,0.98257472]
[1767991395063,0.90653241,3079.7,3078.9,0.002]
[1767991395762,4.15362985,3079.7,3078.9,0.002]
[1767991396973,0.90653241,3079.6,3078.9,0.002]
[1767991397475,0.90653241,3079.5,3078.9,0.002]
[1767991397795,0.90653241,3079.3,3078.9,0.002]
[1767991397990,0.90653241,3079.3,3078.5,0.002]
[1767991398280,0.90737567,3078.8,3078.2,0.00080616]
[1767991398453,1.16237567,3078.8,3078.2,0.00080616]
[1767991398769,0.90653241,3078.7,3078.2,0.00080616]
[1767991399144,0.25584326,3078.8,3078.2,3.24938435]
[1767991399334,0.00084326,3078.8,3078.3,0.03248546]
[1767991399536,0.90653241,3079.5,3078.4,0.98141882]
[1767991399736,0.90653241,3079.3,3078.4,0.98141882]
[1767991400847,0.90653241,3079.1,3078.2,0.00080616]
[1767991401052,5.70154275,3079.2,3078.2,0.00080616]
[1767991401053,0.90653241,3078.7,3078.2,0.00080616]
[1767991401371,0.90653241,3078.5,3077.9,0.0008072]
[1767991402306,0.00080616,3078.6,3077.9,0.98138192]
[1767991403302,0.00080616,3078.6,3078.1,0.98057472]
[1767991403598,0.00080616,3078.6,3078.0,3.24886289]
[1767991403798,0.00080616,3078.6,3078.0,6.92075026]
[1767991403998,0.00080616,3078.6,3078.0,3.67188737]
[1767991404611,0.00080616,3078.6,3078.0,6.92075026]
[1767991404818,0.00080616,3078.6,3078.0,3.67188737]
[1767991405217,0.00080616,3078.6,3078.0,3.24886289]
[1767991405379,0.00080616,3078.6,3077.9,0.98138192]
[1767991407516,0.00080616,3078.6,3078.0,4.22943761]
[1767991408002,0.00080616,3078.6,3078.1,0.98057472]
[1767991408619,0.0008441,3078.8,3078.3,0.98057472]
[1767991409626,0.0008441,3078.8,3078.3,3.24847454]
[1767991409816,0.0008441,3078.8,3078.2,3.24941446]
[1767991410016,0.90737651,3078.8,3078.2,3.99729602]
[1767991410336,0.0008441,3078.8,3078.2,3.99729602]
[1767991410530,0.90737651,3078.8,3078.2,0.00080624]
[1767991411519,0.90653241,3078.7,3078.2,0.00080624]
[1767991412105,0.255,3078.7,3078.2,0.00080624]
[1767991412504,0.255,3078.7,3078.2,0.00280624]
[1767991412703,0.001,3078.5,3078.2,0.00280624]
[1767991414392,0.001,3078.5,3078.2,1.3541148]
[1767991414602,0.001,3078.5,3078.3,0.93285604]
[1767991415497,0.0008441,3078.8,3078.3,0.93285604]
[1767991416660,0.0008441,3078.8,3078.3,4.18137907]
[1767991418262,0.0008441,3078.8,3078.2,0.00280624]
[1767991418263,0.908371,3078.8,3078.2,0.00280624]
[1767991418863,0.0008441,3078.8,3078.3,3.24854248]
[1767991421466,0.0008441,3078.8,3078.3,6.49708875]
[1767991421633,0.0008441,3078.8,3078.4,0.93285604]
[1767991422032,0.0008441,3078.8,3078.5,3.24833522]
[1767991422229,0.0008441,3078.8,3078.5,3.99129367]
[1767991423235,0.001,3079.3,3078.6,0.93285604]
[1767991424087,0.001,3079.3,3078.7,3.2481242]
[1767991424269,0.001,3079.3,3078.7,0.93285604]
[1767991424467,0.9085269,3079.3,3078.5,0.74295845]
[1767991424773,0.9075269,3079.2,3078.4,0.00084494]
[1767991424977,0.9075269,3079.2,3078.4,3.24927516]
[1767991425485,0.001,3079.0,3078.4,3.24927516]
[1767991426270,0.001,3079.0,3078.4,0.00084494]
[1767991428183,0.001,3079.0,3078.5,0.93285604]
[1767991428391,0.001,3079.0,3078.6,0.6635532]
[1767991429163,0.001,3079.0,3078.6,3.91178116]
[1767991429755,0.001,3079.0,3078.6,4.83411908]
[1767991430787,0.001,3079.0,3078.6,1.58589112]
[1767991431718,0.001,3079.0,3078.6,4.83406071]
[1767991431924,0.001,3079.0,3078.8,0.92233792]
[1767991432077,0.001,3079.3,3078.8,0.92233792]
[1767991432685,0.001,3079.3,3078.8,4.17035437]
[1767991435811,0.001,3079.3,3078.7,0.48340607]
[1767991436184,0.001,3079.3,3078.7,3.73145857]
[1767991436384,0.001,3079.3,3078.8,4.10457002]
[1767991437024,0.001,3079.3,3078.9,0.002]
[1767991437185,0.001,3079.0,3078.9,0.002]
[1767991438923,0.255,3079.6,3078.9,0.92433792]
[1767991439089,1.185585,3079.7,3079.0,4.07550038]
[1767991439315,0.930585,3079.7,3079.0,4.07550038]
[1767991439642,0.930585,3079.6,3079.0,0.82769266]
[1767991439817,0.930585,3079.6,3078.9,0.002]
[1767991441125,0.930585,3079.4,3078.9,0.002]
[1767991442018,0.28416444,3079.7,3078.9,0.002]
[1767991442019,0.930585,3079.9,3078.9,5.70383103]
[1767991442242,0.930585,3079.9,3079.0,0.03247807]
[1767991443045,1.18188362,3079.8,3079.1,6.4954045]
[1767991443212,1.18188362,3079.8,3079.1,4.47087361]
[1767991443641,1.18188362,3079.8,3079.1,3.24770225]
[1767991445043,1.18188362,3079.8,3079.0,3.24780772]
[1767991445229,1.18188362,3079.8,3078.9,3.24985819]
[1767991445430,0.92688362,3079.7,3078.9,3.24985819]
[1767991447244,1.18188362,3079.8,3078.9,6.4977714]
[1767991447562,1.18188362,3079.8,3079.0,0.74975422]
[1767991449159,1.18188362,3079.8,3079.0,3.99753941]
[1767991449664,0.92688362,3079.7,3079.0,3.99753941]
[1767991450365,0.001,3079.4,3079.0,3.99753941]
[1767991451366,0.001,3079.4,3079.1,0.99977075]
[1767991451557,0.001,3079.4,3079.2,0.82451179]
[1767991452066,0.001,3079.4,3079.2,1.82428254]
[1767991452238,0.001,3079.4,3079.2,0.82451179]
[1767991453467,0.001,3079.4,3078.9,0.002]
[1767991455685,0.001,3079.4,3078.9,7.49759717]
[1767991455868,0.001,3079.4,3079.0,0.99977075]
[1767991457001,0.001,3079.4,3078.9,6.49782642]
[1767991457213,0.001,3079.4,3078.9,3.24991321]
[1767991457386,0.001,3079.4,3079.0,0.74976644]
[1767991457588,0.001,3079.4,3079.0,3.99754902]
[1767991462031,0.92688362,3079.2,3078.5,0.002]
[1767991462203,0.92488362,3079.2,3078.5,0.002]
[1767991462731,0.95404806,3079.2,3078.5,0.002]
[1767991462898,0.02916444,3079.0,3078.5,0.002]
[1767991463229,0.92688362,3078.9,3078.5,0.002]
[1767991463433,0.92688362,3078.7,3078.5,0.002]
[1767991463735,0.92688362,3078.7,3078.4,0.00084494]
[1767991463899,0.92688362,3078.5,3077.9,0.0028072]
[1767991464101,0.92688362,3078.4,3077.9,0.0028072]
[1767991464326,0.92688362,3078.2,3077.9,0.0028072]
[1767991465429,0.00080624,3078.6,3077.9,1.00257795]
[1767991465629,0.25580624,3078.6,3077.9,1.00257795]
[1767991465833,0.25580624,3078.6,3077.9,0.0028072]
[1767991466226,1.18268986,3078.6,3077.9,0.0028072]
[1767991466530,0.92688362,3078.5,3077.9,0.0028072]
[1767991467752,0.92688362,3078.3,3077.6,0.002]
[1767991467915,0.92688362,3078.1,3077.6,0.002]
[1767991468238,0.92688362,3077.9,3077.6,0.002]
[1767991468631,0.92688362,3077.9,3077.3,0.002806]
[1767991469366,1.37286913,3077.9,3077.3,0.002806]
[1767991469574,0.92688362,3077.9,3077.3,0.002806]
[1767991469865,0.255,3077.8,3077.3,0.002806]
[1767991470537,1.18188362,3077.9,3077.3,0.002806]
[1767991470851,0.92688362,3077.8,3077.3,0.002806]
[1767991473926,0.92688362,3077.8,3077.6,0.002]
[1767991476050,0.255,3077.9,3077.6,0.002]
[1767991476629,1.24879986,3077.9,3077.6,0.002]
[1767991477243,0.255,3077.8,3077.6,0.002]
[1767991477561,0.253,3077.8,3077.6,0.002]
[1767991477865,0.255,3078.0,3077.6,0.002]
[1767991478160,0.99379986,3077.9,3077.6,0.002]
[1767991478876,0.73682722,3078.0,3077.6,0.002]
[1767991479076,0.99379986,3077.9,3077.6,0.002]
[1767991479238,0.99379986,3077.9,3077.3,0.002806]
[1767991479565,0.99379986,3077.7,3077.3,0.002806]
[1767991480029,0.99379986,3077.9,3077.3,0.002806]
[1767991480240,1.71725681,3077.9,3077.3,0.002806]
[1767991481335,1.0229643,3078.0,3077.3,0.002806]
[1767991481535,1.24879986,3077.9,3077.3,0.002806]
[1767991481750,0.99379986,3077.8,3077.3,0.002806]
[1767991482177,1.0229643,3077.8,3077.3,0.002806]
[1767991483273,4.27207013,3077.8,3077.3,0.002806]
[1767991483575,1.44650687,3077.7,3077.3,0.002806]
[1767991484074,1.0229643,3077.6,3076.7,0.00080488]
[1767991484570,1.0229643,3077.6,3076.7,3.2510209]
[1767991485164,0.45351301,3077.7,3076.8,0.94746797]
[1767991485476,0.000806,3077.7,3076.9,0.94746797]
[1767991485878,0.255,3077.6,3077.0,0.94946797]
[1767991488934,0.255,3077.6,3077.0,0.002]
[1767991490460,0.255,3077.6,3077.0,0.92448791]
[1767991490763,0.000806,3077.7,3077.2,0.92248791]
[1767991491548,0.000806,3077.7,3077.0,0.92448791]
[1767991491884,0.000806,3077.7,3077.1,0.74245177]
[1767991493363,0.96556889,3077.7,3077.0,0.002]
[1767991494548,0.96476289,3077.6,3077.0,0.002]
[1767991497302,0.000806,3077.7,3077.0,0.002]
[1767991497807,0.255806,3077.7,3077.3,0.002]
[1767991498175,0.001,3077.4,3077.3,0.002]
[1767991500297,0.001,3077.4,3077.0,0.92448791]
[1767991500488,0.001,3077.4,3077.0,0.002]
[1767991501090,0.96557009,3078.3,3077.4,0.92248791]
[1767991501415,1.22076289,3078.2,3077.4,0.92248791]
[1767991501714,0.96476289,3078.0,3077.3,0.00080608]
[1767991503191,0.256,3078.2,3077.3,0.9410314]
[1767991503192,0.93712763,3078.2,3077.3,0.9410314]
[1767991503392,0.93793387,3078.6,3077.6,0.94022532]
[1767991503707,0.00080624,3078.6,3077.9,0.9410326]
[1767991504021,0.93712763,3078.5,3077.9,0.00080728]
[1767991504220,0.93712763,3078.5,3077.3,0.00080608]
[1767991504221,0.96709935,3078.3,3077.3,0.00080608]
[1767991504416,0.96709935,3078.3,3077.4,3.24948596]
[1767991504631,0.93712763,3078.0,3077.3,0.00080608]
[1767991504915,0.02916444,3078.1,3077.3,0.00080608]
[1767991504916,0.93712763,3077.8,3077.3,0.00080608]
[1767991505219,0.02916444,3077.9,3077.3,0.00080608]
[1767991505220,0.93512763,3077.6,3077.3,0.00080608]
[1767991505986,0.96629207,3077.5,3077.3,0.00080608]
[1767991507493,0.90332971,3077.5,3077.3,0.00080608]
[1767991507924,0.90132971,3077.5,3077.3,0.00080608]
[1767991508482,0.89932971,3077.5,3077.3,0.00080608]
[1767991508919,0.02916444,3077.7,3077.3,0.00080608]
[1767991511011,0.96629207,3077.7,3077.3,0.00080608]
[1767991511330,0.02916444,3077.5,3077.0,0.002]
[1767991511490,0.93712763,3077.4,3077.0,0.002]
[1767991512119,0.77854977,3077.5,3077.0,0.002]
[1767991512330,0.02916444,3077.5,3077.0,0.002]
[1767991512538,0.96629207,3077.5,3077.0,0.002]
[1767991512704,0.255,3077.6,3077.0,0.002]
[1767991512887,1.19212763,3077.6,3077.0,0.002]
[1767991513093,0.02916444,3077.5,3077.0,0.002]
[1767991513521,1.19212763,3077.6,3077.0,0.002]
[1767991513718,0.255,3077.6,3077.0,0.002]
[1767991514734,1.22309815,3077.7,3077.0,0.002]
[1767991514936,1.19393371,3077.7,3077.0,0.002]
[1767991515091,1.19393371,3077.7,3077.0,0.652226]
[1767991515593,0.00080608,3077.7,3077.1,0.94022532]
[1767991515936,0.00080608,3077.7,3077.2,0.94022532]
[1767991516300,0.00080608,3077.7,3077.3,3.24960192]
[1767991516509,0.00080608,3077.7,3077.3,6.49920384]
[1767991516711,0.00080608,3077.7,3077.5,0.94022532]
[1767991517619,0.00080608,3077.7,3077.5,0.97271922]
[1767991517788,0.00080608,3077.7,3077.5,0.94022532]
[1767991518494,0.00080608,3077.7,3077.6,0.94022532]
[1767991518689,0.02997172,3078.3,3077.7,0.94022532]
[1767991518690,0.00080728,3078.3,3077.7,0.94022532]
[1767991518892,0.00080728,3078.3,3077.7,1.68411878]
[1767991519718,0.00080728,3078.3,3077.7,0.74389346]
[1767991519931,0.00080728,3078.3,3077.8,0.94022532]
[1767991520494,0.00080728,3078.3,3077.7,0.74389346]
[1767991520695,0.00080728,3078.3,3077.5,0.94022532]
[1767991520920,0.00080728,3078.3,3077.7,3.2491657]
[1767991521124,0.00080728,3078.3,3077.7,7.4385706]
[1767991521332,0.00080728,3078.3,3077.8,0.94022532]
[1767991522292,0.00080624,3078.6,3078.3,0.94022532]
[1767991522631,0.02916444,3079.7,3078.7,0.94022532]
[1767991522924,0.02916444,3079.7,3078.8,1.35907082]
[1767991522925,0.255,3079.7,3078.8,1.35907082]
[1767991523825,0.255,3079.7,3078.8,0.4188455]
[1767991523826,0.02916444,3079.6,3078.8,0.4188455]
[1767991524335,0.02916444,3080.0,3078.9,0.94022532]
[1767991524494,0.255,3079.8,3078.9,0.94022532]
[1767991524824,0.96629207,3079.7,3078.8,3.24800694]
[1767991525038,0.96629207,3079.7,3078.9,3.24790904]
[1767991525221,0.96629207,3079.7,3078.8,3.24798017]
[1767991525426,0.96629207,3079.7,3078.8,3.66680072]
[1767991525816,0.96629207,3079.7,3078.9,3.24790996]
[1767991526251,0.02916444,3079.7,3078.9,4.18813528]
[1767991526412,0.02916444,3079.7,3078.9,7.43604849]
[1767991526622,0.255,3079.8,3079.0,0.94022532]
[1767991526951,0.255,3079.8,3079.1,0.74360485]
[1767991527313,0.02916444,3079.7,3078.9,3.24790996]
[1767991527508,0.93812763,3079.4,3078.6,3.24820057]
[1767991527717,0.96629207,3079.1,3078.4,3.24925351]
[1767991527959,0.96629207,3079.1,3078.5,3.24830828]
[1767991528126,0.02916444,3079.1,3078.6,3.24821249]
[1767991528326,0.02916444,3079.1,3078.4,0.00084578]
[1767991528525,0.96429207,3079.1,3078.4,0.00084578]
[1767991528728,0.02916444,3079.3,3078.4,0.9410711]
[1767991528921,0.001,3079.4,3078.4,0.9410711]
[1767991529321,0.001,3079.4,3078.6,0.94022532]
[1767991530858,0.96629207,3079.3,3078.4,0.00084578]
[1767991531154,0.001,3079.4,3078.6,7.43667409]
[1767991531342,0.001,3079.4,3078.7,0.74366741]
[1767991531764,0.02916444,3079.9,3078.7,0.74366741]
[1767991531765,0.93793251,3080.2,3079.1,0.94022532]
[1767991532961,0.00080488,3080.2,3079.3,0.90906523]
[1767991534146,0.00080488,3080.2,3079.2,3.24759677]
[1767991534347,0.97975674,3080.2,3079.2,6.49519354]
[1767991534550,0.97975674,3080.2,3079.3,0.64951935]
[1767991535074,0.00080488,3080.2,3079.4,7.40383693]
[1767991535220,0.00080488,3080.2,3079.4,4.15645108]
[1767991535423,0.97895186,3080.6,3079.8,0.00080496]
[1767991535919,0.02916444,3080.4,3079.8,0.00080496]
[1767991536119,0.97895186,3080.4,3079.8,0.00080496]
[1767991537818,0.94978742,3080.3,3079.8,0.00080496]
[1767991538024,0.45458924,3080.4,3079.8,0.00080496]
[1767991538025,0.94978742,3080.1,3079.8,0.00080496]
[1767991538243,0.02916444,3080.2,3079.8,0.00080496]
[1767991538553,0.97895186,3080.2,3079.8,0.00080496]
[1767991538722,0.94978742,3080.1,3079.8,0.00080496]
[1767991540828,0.97975634,3080.8,3079.8,0.00080496]
[1767991541025,0.9505919,3080.8,3079.8,0.90987019]
[1767991541249,0.97895186,3080.7,3079.8,0.00080496]
[1767991541626,0.02916444,3080.5,3079.8,0.00080496]
[1767991542354,0.97895186,3080.5,3079.8,0.00080496]
[1767991542743,1.4043702,3080.5,3079.8,0.00080496]
[1767991542927,0.97895186,3080.5,3079.8,0.00080496]
[1767991545768,0.02916444,3080.5,3079.8,0.00080496]
[1767991545938,0.255,3080.5,3079.8,0.00080496]
[1767991546879,1.23395186,3080.5,3079.8,0.00080496]
[1767991547358,1.23395186,3080.5,3080.1,0.002]
[1767991547564,0.44800734,3080.4,3080.1,0.002]
[1767991547872,0.001,3080.2,3080.1,0.002]
[1767991550266,0.03016444,3080.2,3079.5,0.255]
[1767991550498,0.94038479,3080.2,3079.5,0.255]
[1767991550799,0.91122035,3080.2,3079.6,3.24713731]
[1767991551996,0.91122035,3080.2,3079.3,3.24749131]
[1767991552205,0.91122035,3080.2,3079.4,0.74058345]
[1767991554379,0.91122035,3080.2,3079.5,6.4945608]
[1767991556109,0.91122035,3080.2,3079.5,3.2472804]
[1767991556285,0.91122035,3080.2,3079.4,3.98792402]
[1767991556486,0.91122035,3080.2,3079.2,3.24749807]
[1767991556681,0.93857983,3080.1,3079.0,3.24779105]
[1767991556877,0.90941539,3079.8,3079.0,5.69909449]
[1767991557197,0.00180496,3080.2,3079.5,0.91078756]
[1767991557400,0.00180496,3080.2,3079.6,6.60988205]
[1767991557768,0.00180496,3080.2,3079.6,5.69909449]
[1767991558900,0.00180496,3080.2,3079.7,3.24706951]
[1767991559599,0.00180496,3080.2,3079.6,8.94621748]
[1767991559801,0.91122035,3080.2,3079.6,8.94621748]
[1767991560300,0.91122035,3080.2,3079.3,5.69909449]
[1767991560501,0.001,3079.9,3079.3,3.24745174]
[1767991560669,0.001,3079.9,3079.1,3.24763217]
[1767991561204,0.001,3079.9,3079.1,7.40612198]
[1767991561401,0.001,3079.9,3079.2,0.91078756]
[1767991561706,0.001,3079.9,3079.3,0.7406122]
[1767991563608,0.001,3079.9,3079.4,3.24738585]
[1767991565882,0.00180496,3080.2,3079.8,0.93851562]
[1767991566075,0.95434177,3080.9,3080.0,0.93851562]
[1767991566480,0.98350621,3080.9,3080.0,0.93851562]
[1767991566707,0.98350621,3080.7,3079.8,0.00080504]
[1767991566883,0.95434177,3080.5,3079.8,0.00080504]
[1767991567910,0.98350621,3080.5,3079.8,0.00080504]
[1767991568085,0.95434177,3080.4,3079.8,0.00080504]
[1767991570405,0.42302508,3080.6,3079.8,0.93932066]
[1767991570606,0.255,3080.5,3079.8,0.93932066]
[1767991572513,0.255,3080.5,3079.8,4.18626011]
[1767991573318,0.255,3080.5,3080.1,0.002]
[1767991573517,0.001,3080.2,3080.1,0.002]
[1767991574719,0.001,3080.2,3079.8,0.00280504]
[1767991574720,0.95534177,3080.2,3079.8,0.00280504]
[1767991576411,0.001,3080.2,3079.8,0.00280504]
[1767991577425,0.001,3080.2,3079.8,0.94132066]
[1767991579228,0.001,3080.2,3079.8,4.18821974]
[1767991580512,0.001,3080.2,3079.9,0.93851562]
[1767991581628,0.001,3080.2,3080.0,3.24675324]
[1767991582237,0.001,3080.2,3079.8,4.01873138]
[1767991582238,0.001,3080.2,3079.9,3.24681184]
[1767991582403,0.001,3080.2,3079.9,4.18532746]
[1767991583429,0.001,3080.2,3079.9,7.43218612]
[1767991583596,0.00080448,3080.8,3080.0,0.93851562]
[1767991584002,0.95514625,3080.8,3080.0,0.93851562]
[1767991585602,0.00080448,3080.8,3080.0,0.93851562]
[1767991585805,0.95434177,3081.3,3080.4,0.00080456]
[1767991586006,0.95434177,3080.8,3080.4,0.00080456]
[1767991587815,0.95434177,3080.7,3080.4,0.00080456]
[1767991588434,0.98350621,3080.7,3079.8,3.2497183]
[1767991589138,0.95434177,3080.6,3079.8,3.2497183]
[1767991590712,0.95434177,3080.6,3079.8,0.00280504]
[1767991591112,0.95434177,3080.5,3079.8,0.00280504]
[1767991591547,0.98350621,3080.5,3079.8,0.00280504]
[1767991592433,6.65200979,3080.3,3079.8,0.00280504]
[1767991592632,0.95434177,3080.1,3079.8,0.00280504]
[1767991593948,0.255,3080.9,3079.9,0.99104532]
[1767991594156,0.96917976,3080.8,3080.0,3.24675324]
[1767991595022,0.96917976,3080.8,3079.9,3.91595617]
[1767991595727,0.96917976,3080.8,3079.8,0.00280504]
[1767991595728,0.9683752,3080.7,3079.8,0.00280504]
[1767991596247,0.9683752,3080.7,3079.8,0.99385036]
[1767991596453,0.255,3080.7,3079.8,0.99385036]
[1767991597323,0.255,3080.7,3080.1,0.002]
[1767991598042,1.31854231,3080.7,3080.1,0.002]
[1767991598214,0.9683752,3080.7,3080.1,0.002]
[1767991599052,0.9683752,3080.4,3079.8,0.00280504]
[1767991599238,5.72683246,3080.5,3079.8,0.00280504]
[1767991599239,0.9683752,3080.5,3079.8,0.00280504]
[1767991600228,4.21460732,3080.5,3079.8,0.00280504]
[1767991600477,1.64775238,3080.4,3079.8,0.00280504]
[1767991602558,4.89410607,3080.4,3079.8,0.00280504]
[1767991602931,4.92327051,3080.4,3079.8,0.00280504]
[1767991603257,0.9683752,3080.3,3079.8,0.00280504]
[1767991603752,0.9683752,3080.1,3079.2,3.24759504]
[1767991604129,0.9683752,3080.1,3079.3,3.2474764]
[1767991604330,0.00080504,3080.2,3079.3,3.2474764]
[1767991604655,0.7227126,3080.2,3079.3,7.48601303]
[1767991605272,0.7227126,3080.2,3079.3,4.23852172]
[1767991605567,0.9683752,3080.1,3079.2,3.24754422]